bitfinex/quotes_SOLUSD_20250422
["timestamp","ask_amount","ask_price","bid_price","bid_amount"]
[1745352776309,20.29304333,143.75,143.7,0.03]
[1745352776509,20.29304333,143.75,143.7,20.32304333]
[1745352777009,24.34951996,143.74,143.7,20.32304333]
[1745352777917,24.34951996,143.74,143.71,20.29304333]
[1745352778416,24.34951996,143.74,143.7,0.03]
[1745352778712,24.34951996,143.74,143.7,20.32304333]
[1745352780014,24.34951996,143.74,143.7,0.03]
[1745352780197,24.34951996,143.74,143.7,20.32304333]
[1745352781519,24.34951996,143.74,143.71,20.29304333]
[1745352782203,20.29304333,143.72,143.7,0.03]
[1745352784025,6.95797383,143.72,143.7,0.03]
[1745352785522,6.95797383,143.72,143.7,20.32304333]
[1745352785821,6.95797383,143.72,143.7,0.03]
[1745352786418,17.39251426,143.74,143.7,0.03]
[1745352786632,37.68555759,143.74,143.7,0.03]
[1745352788825,44.64256329,143.74,143.7,0.03]
[1745352790836,24.34951996,143.74,143.7,20.32304333]
[1745352791016,24.34951996,143.74,143.72,20.29304333]
[1745352791203,24.34951996,143.74,143.71,20.29304333]
[1745352791528,24.34951996,143.74,143.71,12.99438381]
[1745352792118,24.34951996,143.74,143.72,12.99438381]
[1745352792802,24.34613244,143.76,143.72,12.99438381]
[1745352793402,44.64785764,143.76,143.71,20.3017252]
[1745352796729,44.64785764,143.76,143.7,0.03]
[1745352796933,44.64785764,143.76,143.71,20.3017252]
[1745352797632,6.95603784,143.76,143.74,20.3017252]
[1745352798412,6.95603784,143.76,143.73,20.3017252]
[1745352799534,6.955554,143.77,143.73,20.3017252]
[1745352800218,24.34443902,143.77,143.73,20.3017252]
[1745352801208,24.34443902,143.77,143.74,20.3017252]
[1745352801624,24.34443902,143.77,143.75,20.3017252]
[1745352802646,24.34105291,143.79,143.75,20.3017252]
[1745352802935,24.34105291,143.79,143.77,20.3017252]
[1745352803242,24.34105291,143.79,143.74,18.64964886]
[1745352803534,20.3017252,143.78,143.73,21.9127252]
[1745352803725,44.64277811,143.79,143.74,20.3017252]
[1745352807038,24.34105291,143.79,143.75,20.3017252]
[1745352807241,24.34105291,143.79,143.76,20.3017252]
[1745352808237,17.38646637,143.79,143.76,20.3017252]
[1745352808443,17.38646637,143.79,143.75,20.3017252]
[1745352809527,37.68819157,143.79,143.74,20.3017252]
[1745352810329,44.64277811,143.79,143.74,20.3017252]
[1745352810515,20.3017252,143.77,143.73,1.611]
[1745352810722,20.3017252,143.78,143.7,0.03]
[1745352811030,20.3017252,143.74,143.7,0.03]
[1745352812427,24.35121407,143.73,143.7,0.03]
[1745352814934,12.99760289,143.75,143.7,0.03]
[1745352815241,12.99760289,143.74,143.69,14.03110289]
[1745352817038,24.35121407,143.73,143.69,14.03110289]
[1745352819445,24.35121407,143.73,143.7,12.99760289]
[1745352820058,6.95748973,143.73,143.71,12.99760289]
[1745352821147,24.34782607,143.75,143.71,12.99760289]
[1745352823348,24.34782607,143.75,143.72,12.99760289]
[1745352825251,17.39130434,143.75,143.72,12.99760289]
[1745352826246,17.39130434,143.75,143.71,12.99760289]
[1745352827341,24.34782607,143.75,143.71,12.99760289]
[1745352828655,37.34542896,143.75,143.7,31.64725175]
[1745352828950,37.34542896,143.75,143.7,12.99760289]
[1745352830456,6.5604,143.74,143.65,1.6797]
[1745352830636,12.99760289,143.69,143.65,1.6797]
[1745352830834,12.99760289,143.7,143.65,14.67730289]
[1745352831035,12.99760289,143.71,143.66,12.99760289]
[1745352831656,24.35629784,143.7,143.66,12.99760289]
[1745352832153,24.35629784,143.7,143.65,1.6797]
[1745352832355,24.35629784,143.7,143.66,12.99760289]
[1745352832950,24.35629784,143.7,143.65,14.67730289]
[1745352833155,37.35390073,143.7,143.65,1.6797]
[1745352833330,37.35390073,143.7,143.65,14.67730289]
[1745352833745,37.35390073,143.7,143.65,1.6797]
[1745352833944,24.35629784,143.7,143.66,12.99760289]
[1745352835050,6.95894224,143.7,143.67,12.99760289]
[1745352835249,6.95894224,143.7,143.68,12.99760289]
[1745352835449,6.95894224,143.7,143.67,12.99760289]
[1745352835842,6.958458,143.71,143.67,12.99760289]
[1745352836343,24.35460301,143.71,143.67,12.99760289]
[1745352837053,37.3522059,143.71,143.66,12.99760289]
[1745352838434,24.35460301,143.71,143.67,12.99760289]
[1745352840845,24.35460301,143.71,143.68,12.99760289]
[1745352841043,24.35460301,143.71,143.67,12.99760289]
[1745352845455,24.35460301,143.71,143.69,12.99760289]
[1745352846660,24.35460301,143.71,143.68,12.99760289]
[1745352847458,17.39614501,143.71,143.68,12.99760289]
[1745352848166,17.39614501,143.71,143.65,109.6797]
[1745352848363,30.3937479,143.71,143.66,12.99760289]
[1745352849170,12.99760289,143.7,143.65,83.6797]
[1745352849365,12.99760289,143.7,143.65,96.67730289]
[1745352849854,6.95942654,143.69,143.65,96.67730289]
[1745352850244,24.35799289,143.69,143.66,12.99760289]
[1745352851860,6.95894224,143.7,143.68,12.99760289]
[1745352852266,6.95894224,143.7,143.67,12.99760289]
[1745352853364,24.35470471,143.71,143.67,12.99760289]
[1745352854167,24.35470471,143.71,143.65,83.6797]
[1745352854358,24.35470471,143.71,143.67,12.99760289]
[1745352855161,24.35470471,143.71,143.65,83.6797]
[1745352855678,24.35470471,143.71,143.67,12.99760289]
[1745352856264,37.3523076,143.71,143.65,83.6797]
[1745352856579,37.3523076,143.71,143.66,12.99760289]
[1745352856784,24.35470471,143.71,143.66,12.99760289]
[1745352856964,37.3523076,143.71,143.66,12.99760289]
[1745352857349,24.35470471,143.71,143.67,12.99760289]
[1745352857762,37.3523076,143.71,143.66,12.99760289]
[1745352859881,24.35470471,143.71,143.67,12.99760289]
[1745352860384,24.35470471,143.71,143.65,1.6797]
[1745352860585,24.35470471,143.71,143.67,12.99760289]
[1745352861463,24.35470471,143.71,143.68,12.99760289]
[1745352861667,6.958458,143.71,143.69,12.99760289]
[1745352861873,6.958458,143.71,143.65,151.3797]
[1745352861874,6.958458,143.71,143.68,12.99760289]
[1745352862184,6.958458,143.71,143.67,12.99760289]
[1745352862366,24.35460301,143.71,143.67,12.99760289]
[1745352863187,24.35460301,143.71,143.65,109.6797]
[1745352863397,17.39614501,143.71,143.67,12.99760289]
[1745352864285,6.95797383,143.72,143.68,12.99760289]
[1745352865681,6.95797383,143.72,143.69,12.99760289]
[1745352865978,6.95797383,143.72,143.71,12.99760289]
[1745352866376,6.95797383,143.72,143.66,116.44964886]
[1745352866377,6.95797383,143.72,143.7,12.99760289]
[1745352867187,6.9570057,143.74,143.7,12.99760289]
[1745352868184,6.9570057,143.74,143.71,12.99760289]
[1745352868385,6.9570057,143.74,143.72,12.99760289]
[1745352869194,12.99760289,143.75,143.69,18.64964886]
[1745352869365,12.99760289,143.75,143.7,12.99760289]
[1745352869866,12.99760289,143.75,143.71,12.99760289]
[1745352870684,12.99760289,143.76,143.71,12.99760289]
[1745352871367,19.95412462,143.75,143.71,12.99760289]
[1745352871589,12.99760289,143.73,143.69,82.0]
[1745352871977,12.99760289,143.74,143.69,94.99760289]
[1745352873091,6.95748973,143.73,143.69,82.0]
[1745352873386,37.34881696,143.73,143.69,82.0]
[1745352873763,37.34881696,143.73,143.68,38.99760289]
[1745352874366,37.34881696,143.73,143.68,12.99760289]
[1745352874682,37.34881696,143.73,143.66,123.8]
[1745352874890,37.34881696,143.73,143.68,12.99760289]
[1745352875764,37.34881696,143.73,143.69,12.99760289]
[1745352875965,34.78144894,143.76,143.69,12.99760289]
[1745352876191,12.99760289,143.74,143.69,12.99760289]
[1745352877991,12.99760289,143.73,143.68,12.99760289]
[1745352882795,24.35290842,143.72,143.68,12.99760289]
[1745352883593,24.35290842,143.72,143.69,12.99760289]
[1745352884696,17.39493459,143.72,143.69,12.99760289]
[1745352886281,17.39493459,143.72,143.66,123.8]
[1745352886472,17.39493459,143.72,143.69,12.99760289]
[1745352891683,6.95748973,143.73,143.7,12.99760289]
[1745352892893,24.35121407,143.73,143.7,12.99760289]
[1745352893089,24.35121407,143.73,143.69,12.99760289]
[1745352896600,24.35121407,143.73,143.68,12.99760289]
[1745352896785,24.35121407,143.73,143.69,12.99760289]
[1745352899000,24.35121407,143.73,143.7,12.99760289]
[1745352900489,17.39372434,143.73,143.7,12.99760289]
[1745352901600,17.39372434,143.73,143.67,100.64964886]
[1745352901901,17.39372434,143.73,143.7,12.99760289]
[1745352902086,6.9570057,143.74,143.72,12.99760289]
[1745352902290,6.9570057,143.74,143.71,12.99760289]
[1745352902903,24.34700972,143.76,143.72,12.99760289]
[1745352903409,37.34461261,143.76,143.71,12.99760289]
[1745352903907,24.34700972,143.76,143.72,12.99760289]
[1745352904086,37.34461261,143.76,143.69,18.64964886]
[1745352904281,12.99760289,143.73,143.66,15.8]
[1745352904495,12.99760289,143.72,143.67,12.99760289]
[1745352904713,12.99760289,143.7,143.65,0.03]
[1745352904900,12.99760289,143.66,143.65,0.03]
[1745352905101,12.99760289,143.65,143.64,0.03]
[1745352906810,19.95896731,143.65,143.64,0.03]
[1745352908210,24.35748203,143.7,143.64,13.02760289]
[1745352908417,6.95894224,143.7,143.68,12.99760289]
[1745352908715,6.95894224,143.7,143.67,12.99760289]
[1745352909014,19.95606089,143.71,143.67,12.99760289]
[1745352909212,6.958458,143.71,143.67,12.99760289]
[1745352909409,6.958458,143.71,143.68,12.99760289]
[1745352910898,6.95797383,143.72,143.68,12.99760289]
[1745352911306,6.95797383,143.72,143.64,96.67006042]
[1745352911307,6.95797383,143.72,143.69,12.99760289]
[1745352911616,6.95797383,143.72,143.7,12.99760289]
[1745352911783,6.9570057,143.74,143.71,12.99760289]
[1745352912409,19.95460859,143.74,143.69,12.99760289]
[1745352912604,6.9570057,143.74,143.69,12.99760289]
[1745352912913,6.9570057,143.74,143.7,12.99760289]
[1745352913290,6.9570057,143.74,143.71,12.99760289]
[1745352914790,6.9570057,143.74,143.72,12.99760289]
[1745352914991,6.95603784,143.76,143.72,12.99760289]
[1745352915226,6.95603784,143.76,143.73,12.99760289]
[1745352915689,6.95603784,143.76,143.72,12.99760289]
[1745352918210,6.95603784,143.76,143.74,12.99760289]
[1745352918516,6.95603784,143.76,143.7,18.64964886]
[1745352918517,7.01867002,143.77,143.72,18.64964886]
[1745352918692,7.01867002,143.77,143.73,12.99760289]
[1745352919199,7.01867002,143.77,143.74,12.99760289]
[1745352920212,0.063,143.77,143.74,12.99760289]
[1745352920594,0.063,143.77,143.72,18.64964886]
[1745352920894,0.063,143.77,143.74,12.99760289]
[1745352921106,0.063,143.77,143.75,12.99760289]
[1745352921803,0.063,143.77,143.76,12.99760289]
[1745352925323,13.06060289,143.77,143.7,83.5386]
[1745352925509,12.99760289,143.76,143.7,83.5386]
[1745352925702,12.99760289,143.76,143.71,12.99760289]
[1745352925901,12.99760289,143.75,143.7,96.53620289]
[1745352927226,17.39251426,143.74,143.71,12.99760289]
[1745352927430,30.39011715,143.74,143.69,12.99760289]
[1745352928312,12.99760289,143.73,143.68,12.99760289]
[1745352929723,37.35051131,143.72,143.67,14.57270289]
[1745352930329,37.35051131,143.72,143.64,0.03]
[1745352930330,12.99760289,143.69,143.64,0.03]
[1745352930628,12.99760289,143.7,143.65,12.99760289]
[1745352931441,12.99760289,143.7,143.66,20.32021601]
[1745352931442,17.39837453,143.7,143.66,20.32021601]
[1745352931613,17.39837453,143.7,143.67,20.32021601]
[1745352932117,17.39837453,143.7,143.64,38.99986487]
[1745352932506,17.39837453,143.7,143.67,20.32021601]
[1745352934313,17.39837453,143.7,143.66,20.32021601]
[1745352935234,24.35731677,143.7,143.64,18.67964886]
[1745352935531,24.35731677,143.7,143.66,20.32021601]
[1745352936703,24.35731677,143.7,143.64,0.03]
[1745352936704,20.32021601,143.69,143.64,0.03]
[1745352936911,51.30823278,143.7,143.64,20.35021601]
[1745352937106,24.35731677,143.7,143.65,20.32021601]
[1745352937424,24.35731677,143.7,143.66,20.32021601]
[1745352937627,24.35731677,143.7,143.65,20.32021601]
[1745352940027,44.67753278,143.7,143.65,20.32021601]
[1745352941136,24.35731677,143.7,143.67,20.32021601]
[1745352942145,24.35731677,143.7,143.66,20.32021601]
[1745352943338,44.67753278,143.7,143.65,20.32021601]
[1745352946921,20.32021601,143.69,143.64,20.35021601]
[1745352947240,20.32021601,143.68,143.64,0.03]
[1745352949236,24.36138372,143.67,143.64,0.03]
[1745352949448,44.68159973,143.67,143.64,0.03]
[1745352949749,24.36138372,143.67,143.64,0.03]
[1745352950038,6.96039535,143.67,143.66,20.32021601]
[1745352950538,6.96039535,143.67,143.64,0.03]
[1745352950842,6.96039535,143.67,143.65,20.32021601]
[1745352951232,44.67830903,143.69,143.64,20.35021601]
[1745352951539,37.36457909,143.69,143.64,13.03648607]
[1745352951748,13.00648607,143.68,143.64,0.03]
[1745352951952,37.36457909,143.69,143.64,13.03648607]
[1745352953526,37.36457909,143.69,143.65,13.00648607]
[1745352953527,24.35809302,143.69,143.65,13.00648607]
[1745352954850,24.35809302,143.69,143.64,0.03]
[1745352955030,24.35809302,143.69,143.65,13.00648607]
[1745352955431,24.35809302,143.69,143.66,13.00648607]
[1745352955631,6.95942654,143.69,143.66,13.00648607]
[1745352956749,37.36133299,143.71,143.66,13.00648607]
[1745352956933,37.36133299,143.71,143.67,13.00648607]
[1745352956934,24.35484692,143.71,143.67,13.00648607]
[1745352957432,37.36133299,143.71,143.66,13.00648607]
[1745352957853,13.00648607,143.7,143.65,13.00648607]
[1745352958624,6.95942654,143.69,143.64,82.03]
[1745352958828,19.96591261,143.69,143.64,95.03648607]
[1745352959255,37.36447896,143.69,143.64,82.03]
[1745352959452,13.00648607,143.68,143.64,82.03]
[1745352960133,24.35799289,143.69,143.64,82.03]
[1745352960134,13.00648607,143.67,143.64,82.03]
[1745352960335,13.00648607,143.68,143.64,82.03]
[1745352960657,6.96039535,143.67,143.64,82.03]
[1745352961656,13.00648607,143.66,143.64,0.03]
[1745352962342,37.36786979,143.67,143.64,0.03]
[1745352963142,24.36138372,143.67,143.64,0.03]
[1745352964655,37.36786979,143.67,143.64,0.03]
[1745352965446,24.36138372,143.67,143.64,0.03]
[1745352965646,37.36786979,143.67,143.64,0.03]
[1745352966460,17.40098837,143.67,143.64,0.03]
[1745352966662,30.40747444,143.67,143.64,0.03]
[1745352968444,37.36786979,143.67,143.64,0.03]
[1745352969364,13.00648607,143.65,143.64,0.03]
[1745352969870,13.00648607,143.65,143.62,0.03]
[1745352970074,13.00648607,143.63,143.62,0.03]
[1745352970256,50.36138372,143.67,143.62,0.03]
[1745352970257,13.00648607,143.64,143.62,0.03]
[1745352970964,6.96233377,143.63,143.62,0.03]
[1745352972874,6.96233377,143.63,143.62,1e-08]
[1745352972875,45.96881984,143.63,143.62,1e-08]
[1745352973047,52.32751984,143.63,143.61,1e-08]
[1745352973371,13.00648607,143.62,143.6,1e-08]
[1745352973573,13.00648607,143.61,143.6,1e-08]
[1745352974080,13.00648607,143.61,143.58,0.03]
[1745352974257,13.00648607,143.59,143.58,0.03]
[1745352975175,19.97075934,143.59,143.58,1e-08]
[1745352977351,18.64964886,143.6,143.58,1e-08]
[1745352977551,13.00648607,143.59,143.58,1e-08]
[1745352978056,31.65613493,143.59,143.58,1e-08]
[1745352979573,38.6204082,143.59,143.58,1e-08]
[1745352981263,98.52105248,143.59,143.58,1e-08]
[1745352981772,18.64964886,143.58,143.53,1.1223107]
[1745352982265,13.00648607,143.55,143.53,1.1223107]
[1745352982868,13.00648607,143.56,143.53,1.1223107]
[1745352983176,13.00648607,143.57,143.53,1.1223107]
[1745352983355,30.73365646,143.59,143.53,14.12879677]
[1745352983671,6.96572861,143.56,143.53,1.1223107]
[1745352984673,6.96572861,143.56,143.53,14.12879677]
[1745352985272,6.96572861,143.56,143.53,21.47655343]
[1745352985682,6.96524343,143.57,143.53,21.47655343]
[1745352986369,6.96524343,143.57,143.54,20.35424273]
[1745352987378,6.96475832,143.58,143.54,20.35424273]
[1745352987575,6.96475832,143.58,143.55,20.35424273]
[1745352988274,23.76554312,143.63,143.56,21.99314273]
[1745352988453,17.40684312,143.63,143.59,20.35424273]
[1745352988771,6.96281854,143.62,143.61,20.35424273]
[1745352989469,44.78212305,143.65,143.6,20.35424273]
[1745352989668,44.78212305,143.65,143.56,16.7589]
[1745352989866,44.78212305,143.65,143.6,20.35424273]
[1745352991658,44.78212305,143.65,143.56,16.7589]
[1745352991659,20.35424273,143.63,143.56,16.7589]
[1745352991855,20.35424273,143.63,143.58,20.35424273]
[1745352992060,20.35424273,143.64,143.6,20.35424273]
[1745352992272,44.78212305,143.65,143.6,20.35424273]
[1745352992474,20.35424273,143.64,143.6,20.35424273]
[1745352993174,20.35424273,143.64,143.59,20.35424273]
[1745352993373,6.96233377,143.63,143.59,20.35424273]
[1745352994358,27.3165765,143.63,143.58,20.35424273]
[1745352994759,44.72241093,143.63,143.58,20.35424273]
[1745352994967,24.3681682,143.63,143.57,18.64964886]
[1745352995177,24.3681682,143.63,143.59,20.35424273]
[1745352996085,6.96233377,143.63,143.6,20.35424273]
[1745352996286,6.96233377,143.63,143.61,20.35424273]
[1745352997682,24.42795305,143.65,143.61,20.35424273]
[1745352997982,20.35424273,143.64,143.57,108.0]
[1745352998174,20.35424273,143.63,143.58,20.35424273]
[1745352998478,20.35424273,143.62,143.57,128.35424273]
[1745352998677,20.35424273,143.62,143.57,108.0]
[1745352999481,20.35424273,143.62,143.57,128.35424273]
[1745353000085,6.96330339,143.61,143.57,46.35424273]
[1745353000658,24.37156186,143.61,143.57,46.35424273]
[1745353000963,24.37156186,143.61,143.57,20.35424273]
[1745353001276,44.72580459,143.61,143.56,37.11314273]
[1745353001584,20.35424273,143.6,143.56,1.6389]
[1745353001981,20.35424273,143.57,143.53,1.1223107]
[1745353002485,20.35424273,143.58,143.53,21.47655343]
[1745353003274,44.72919919,143.59,143.54,20.35424273]
[1745353003476,24.37495646,143.59,143.55,20.35424273]
[1745353004265,44.72919919,143.59,143.54,20.35424273]
[1745353004789,44.72919919,143.59,143.53,1.1223107]
[1745353005176,44.72919919,143.59,143.54,20.35424273]
[1745353007186,24.37495646,143.59,143.55,20.35424273]
[1745353007790,44.72919919,143.59,143.54,20.35424273]
[1745353008087,20.35424273,143.58,143.53,21.47655343]
[1745353008878,79.55056558,143.59,143.54,20.35424273]
[1745353010190,24.37495646,143.59,143.55,20.35424273]
[1745353010499,24.37495646,143.59,143.57,20.35424273]
[1745353011968,24.37495646,143.59,143.58,20.35424273]
[1745353012179,0.063,143.65,143.58,21.86944273]
[1745353012468,0.063,143.65,143.59,18.64964886]
[1745353012680,0.063,143.65,143.64,20.35424273]
[1745353013274,0.063,143.65,143.63,20.35424273]
[1745353013470,0.063,143.65,143.59,18.64964886]
[1745353013682,0.063,143.65,143.63,20.35424273]
[1745353017275,0.063,143.65,143.59,18.64964886]
[1745353017476,0.063,143.65,143.62,20.35424273]
[1745353019094,0.063,143.65,143.61,20.35424273]
[1745353019297,0.063,143.65,143.58,83.5152]
[1745353019298,20.35424273,143.63,143.58,83.5152]
[1745353019602,20.35424273,143.62,143.57,61.47424273]
[1745353020100,20.35424273,143.63,143.58,20.35424273]
[1745353020288,20.35424273,143.64,143.59,20.35424273]
[1745353021294,24.3681682,143.63,143.59,20.35424273]
[1745353021672,24.3681682,143.63,143.58,20.35424273]
[1745353022496,44.72241093,143.63,143.58,20.35424273]
[1745353022688,44.72241093,143.63,143.57,35.47424273]
[1745353022894,20.35424273,143.62,143.57,35.47424273]
[1745353023298,24.37156186,143.61,143.57,20.35424273]
[1745353024203,44.72580459,143.61,143.56,20.35424273]
[1745353025083,20.35424273,143.6,143.55,20.35424273]
[1745353025283,24.37495646,143.59,143.55,20.35424273]
[1745353026495,24.37495646,143.59,143.54,1.5152]
[1745353026795,24.37495646,143.59,143.54,21.86944273]
[1745353027207,24.37495646,143.59,143.56,20.35424273]
[1745353027391,24.37495646,143.59,143.54,1.5152]
[1745353027592,24.37495646,143.59,143.55,20.35424273]
[1745353028111,20.35424273,143.58,143.53,16.1823107]
[1745353028401,20.35424273,143.58,143.53,36.53655343]
[1745353028582,20.35424273,143.57,143.53,16.1823107]
[1745353028998,20.35424273,143.57,143.53,1.1223107]
[1745353029188,44.73429287,143.56,143.53,1.1223107]
[1745353031500,24.38005014,143.56,143.53,21.47655343]
[1745353031696,24.38005014,143.56,143.53,1.1223107]
[1745353033098,44.73429287,143.56,143.53,1.1223107]
[1745353033405,20.35424273,143.55,143.53,1.1223107]
[1745353033794,44.73429287,143.56,143.53,1.1223107]
[1745353034307,20.35424273,143.55,143.53,1.1223107]
[1745353034885,6.96669917,143.54,143.53,1.1223107]
[1745353040517,24.37325905,143.6,143.53,14.15524018]
[1745353040811,24.37325905,143.6,143.56,13.03292948]
[1745353041213,37.40618853,143.6,143.53,1.1223107]
[1745353041389,20.35097197,143.59,143.54,20.35097197]
[1745353042621,24.37665412,143.58,143.54,20.35097197]
[1745353044292,24.37665412,143.58,143.55,20.35097197]
[1745353045211,17.4118958,143.58,143.55,20.35097197]
[1745353045706,17.4118958,143.58,143.54,20.35097197]
[1745353047093,17.4118958,143.58,143.55,20.35097197]
[1745353048717,17.4118958,143.58,143.54,20.35097197]
[1745353049418,20.35097197,143.59,143.54,20.35097197]
[1745353049715,79.53905078,143.61,143.56,20.35097197]
[1745353050214,59.18807881,143.61,143.55,20.35097197]
[1745353050417,79.53905078,143.61,143.55,20.35097197]
[1745353051323,59.18807881,143.61,143.55,20.35097197]
[1745353051530,20.35097197,143.6,143.55,20.35097197]
[1745353052726,79.53905078,143.61,143.55,20.35097197]
[1745353053899,20.35097197,143.6,143.54,1.5748]
[1745353054198,20.35097197,143.6,143.55,20.35097197]
[1745353054813,24.37495646,143.59,143.55,20.35097197]
[1745353058614,0.063,143.64,143.58,20.35097197]
[1745353058827,6.96233377,143.63,143.6,20.35097197]
[1745353059030,24.42952681,143.64,143.6,20.35097197]
[1745353060504,24.42952681,143.64,143.61,20.35097197]
[1745353061129,17.46767775,143.64,143.61,20.35097197]
[1745353061335,17.46767775,143.64,143.6,13.0132984]
[1745353064449,0.063,143.64,143.6,13.0132984]
[1745353067042,0.063,143.64,143.59,13.0132984]
[1745353067248,13.0762984,143.64,143.59,13.0132984]
[1745353067441,13.0132984,143.63,143.58,96.5880984]
[1745353067642,13.0132984,143.63,143.58,13.0132984]
[1745353068345,13.0132984,143.63,143.57,14.72]
[1745353068550,13.0132984,143.62,143.57,27.7332984]
[1745353068926,13.0132984,143.61,143.57,14.72]
[1745353069235,24.37325905,143.6,143.56,13.0132984]
[1745353069753,37.38655745,143.6,143.55,14.6171984]
[1745353069928,13.0132984,143.56,143.53,1.1223107]
[1745353071149,6.96621386,143.55,143.53,1.1223107]
[1745353071852,19.97951226,143.55,143.53,1.1223107]
[1745353072146,13.0132984,143.54,143.53,1.1223107]
[1745353072344,13.0132984,143.54,143.52,0.03]
[1745353073349,6.96718456,143.53,143.52,0.03]
[1745353074649,6.96669917,143.54,143.52,0.03]
[1745353076355,27.33177667,143.54,143.52,0.03]
[1745353078361,20.3650775,143.53,143.52,0.03]
[1745353078532,20.3650775,143.53,143.5,0.03]
[1745353078733,20.3650775,143.52,143.5,0.03]
[1745353079264,20.3650775,143.53,143.5,0.03]
[1745353080037,6.96767001,143.52,143.5,0.03]
[1745353080735,6.96767001,143.52,143.5,20.3950775]
[1745353080957,6.96767001,143.52,143.51,20.3650775]
[1745353081462,6.96767001,143.52,143.5,0.03]
[1745353081633,6.96767001,143.52,143.5,20.3950775]
[1745353081964,24.38344711,143.54,143.5,0.03]
[1745353082261,24.38344711,143.54,143.5,20.3950775]
[1745353082552,44.74852461,143.54,143.5,0.03]
[1745353082755,20.3650775,143.53,143.5,0.03]
[1745353083146,44.74852461,143.54,143.5,0.03]
[1745353083655,24.38344711,143.54,143.51,20.3650775]
[1745353084048,20.3650775,143.53,143.5,0.03]
[1745353084256,20.3650775,143.52,143.5,0.03]
[1745353085765,17.41674794,143.54,143.5,0.03]
[1745353085958,20.3650775,143.53,143.5,0.03]
[1745353086466,6.96767001,143.52,143.5,0.03]
[1745353088461,44.75022346,143.53,143.5,0.03]
[1745353089461,20.3650775,143.52,143.5,0.03]
[1745353089960,24.38514596,143.53,143.5,0.03]
[1745353091645,44.75022346,143.53,143.5,0.03]
[1745353094450,20.3650775,143.52,143.5,0.03]
[1745353096448,27.33323302,143.51,143.5,0.03]
[1745353097471,20.00809309,143.51,143.5,1e-08]
[1745353098259,6.2449,143.5,143.49,1e-08]
[1745353098571,26.25347868,143.5,143.49,1e-08]
[1745353099249,20.00857868,143.5,143.49,1e-08]
[1745353099453,6.96864111,143.5,143.49,1e-08]
[1745353100566,24.38514596,143.53,143.49,1e-08]
[1745353100777,24.38514596,143.53,143.49,13.03993758]
[1745353103061,37.42508353,143.53,143.49,1e-08]
[1745353105271,17.4179614,143.53,143.49,1e-08]
[1745353105473,17.4179614,143.53,143.49,13.03993758]
[1745353106069,17.4179614,143.53,143.5,13.03993757]
[1745353106267,17.4179614,143.53,143.51,13.03993757]
[1745353106571,17.4179614,143.53,143.49,1e-08]
[1745353106572,6.96669917,143.54,143.52,13.03993757]
[1745353106774,6.96669917,143.54,143.53,13.03993757]
[1745353107360,17.41540037,143.56,143.53,13.03993757]
[1745353111179,17.41540037,143.56,143.49,1e-08]
[1745353111478,17.41540037,143.56,143.53,13.03993757]
[1745353111689,13.03993757,143.55,143.49,1e-08]
[1745353111866,13.03993757,143.55,143.5,13.03993757]
[1745353112366,30.45533794,143.56,143.49,1e-08]
[1745353112569,30.45533794,143.56,143.51,13.03993757]
[1745353113396,13.03993757,143.55,143.49,1e-08]
[1745353113694,24.38344711,143.54,143.5,13.03993757]
[1745353114489,13.03993757,143.56,143.51,13.03993757]
[1745353114992,59.20456918,143.57,143.53,13.03993757]
[1745353115176,72.24450675,143.57,143.52,13.03993757]
[1745353115592,24.37835201,143.57,143.53,13.03993757]
[1745353116173,24.37835201,143.57,143.54,13.03993757]
[1745353116373,24.37835201,143.57,143.55,13.03993757]
[1745353116583,17.41310858,143.57,143.54,13.03993757]
[1745353116902,17.41310858,143.57,143.53,13.03993757]
[1745353117790,17.41310858,143.57,143.54,13.03993757]
[1745353118181,17.41310858,143.57,143.52,1.6226]
[1745353118399,17.41310858,143.57,143.53,13.03993757]
[1745353118895,24.37835201,143.57,143.53,13.03993757]
[1745353120398,24.37835201,143.57,143.54,13.03993757]
[1745353120776,17.41310858,143.57,143.54,13.03993757]
[1745353121780,6.96475832,143.58,143.56,13.03993757]
[1745353122104,6.96475832,143.58,143.57,13.03993757]
[1745353122812,0.063,143.59,143.57,13.03993757]
[1745353123000,0.063,143.59,143.58,13.03993757]
[1745353124406,0.063,143.59,143.52,157.7291]
[1745353124607,0.063,143.59,143.58,13.03993757]
[1745353125686,0.063,143.59,143.57,13.03993757]
[1745353126108,0.063,143.59,143.58,13.03993757]
[1745353132107,0.063,143.59,143.57,13.03993757]
[1745353132316,0.063,143.59,143.58,13.03993757]
[1745353133728,0.063,143.59,143.52,157.7291]
[1745353134018,0.063,143.59,143.58,13.03993757]
[1745353134414,0.063,143.59,143.52,157.7291]
[1745353134629,0.063,143.59,143.52,131.7291]
[1745353134831,0.063,143.59,143.58,13.03993757]